[Event "*** Titled Tuesday 3|2 Blitz"]
[Site "Chess.com"]
[Date "2016.09.06"]
[Round "3"]
[White "mwpchess"]
[Black "semiks"]
[Result "0-1"]
[WhiteElo "2442"]
[BlackElo "2514"]
[TimeControl "180+2"]
[EndTime "11:36:39 PDT"]
[Termination "semiks won on time"]

1. e4 {[%clk 0:03:02]} 1... d5 {[%clk 0:03:00.6]} 2. exd5 {[%clk 0:03:02.4]}
2... Qxd5 {[%clk 0:03:02.5]} 3. Nc3 {[%clk 0:03:02.7]} 3... Qa5 {[%clk 0:03:04]}
4. d4 {[%clk 0:03:03.1]} 4... Nf6 {[%clk 0:03:05.4]} 5. Nf3 {[%clk 0:03:01.6]}
5... Bg4 {[%clk 0:03:06.5]} 6. Bd2 {[%clk 0:03:01.4]} 6... Qb6 {[%clk
0:03:03.1]} 7. h3 {[%clk 0:02:48.5]} 7... Bxf3 {[%clk 0:03:00.1]} 8. Qxf3 {[%clk
0:02:48.5]} 8... Nc6 {[%clk 0:02:57.1]} 9. Bb5 {[%clk 0:02:40.5]} 9... O-O-O
{[%clk 0:02:53.3]} 10. Bxc6 {[%clk 0:02:40.2]} 10... Qxc6 {[%clk 0:02:54.4]} 11.
Qxc6 {[%clk 0:02:39.7]} 11... bxc6 {[%clk 0:02:56.3]} 12. Ne2 {[%clk 0:02:28.6]}
12... e6 {[%clk 0:02:57.8]} 13. c3 {[%clk 0:02:27.9]} 13... c5 {[%clk
0:02:58.7]} 14. Bg5 {[%clk 0:02:17.9]} 14... Be7 {[%clk 0:02:48.4]} 15. O-O-O
{[%clk 0:02:06]} 15... cxd4 {[%clk 0:02:49.7]} 16. Rxd4 {[%clk 0:02:03.3]} 16...
h6 {[%clk 0:02:40.1]} 17. Be3 {[%clk 0:01:41.1]} 17... Nd5 {[%clk 0:02:38]} 18.
Rhd1 {[%clk 0:01:31.3]} 18... Kb7 {[%clk 0:02:39.1]} 19. Rg4 {[%clk 0:01:16.8]}
19... g5 {[%clk 0:02:04.2]} 20. Bd4 {[%clk 0:01:07.7]} 20... Rhe8 {[%clk
0:02:01.2]} 21. Rg3 {[%clk 0:00:51.1]} 21... c5 {[%clk 0:01:50.5]} 22. Be3
{[%clk 0:00:49]} 22... f5 {[%clk 0:01:49]} 23. Bd2 {[%clk 0:00:49.2]} 23... f4
{[%clk 0:01:47.7]} 24. Rd3 {[%clk 0:00:49]} 24... c4 {[%clk 0:01:49]} 25. Rd4
{[%clk 0:00:49.2]} 25... Bc5 {[%clk 0:01:46.1]} 26. Rxc4 {[%clk 0:00:48.7]}
26... Bxf2 {[%clk 0:01:47.3]} 27. Nd4 {[%clk 0:00:46.3]} 27... e5 {[%clk
0:01:44]} 28. Nf5 {[%clk 0:00:41.6]} 28... e4 {[%clk 0:01:30.4]} 29. Be1 {[%clk
0:00:36.7]} 29... Ne3 {[%clk 0:01:21.8]} 30. Rb4+ {[%clk 0:00:32.2]} 30... Ka8
{[%clk 0:01:17.9]} 31. Nxe3 {[%clk 0:00:30.7]} 31... Bxe3+ {[%clk 0:01:18.4]}
32. Kc2 {[%clk 0:00:28.7]} 32... Rxd1 {[%clk 0:01:19.5]} 33. Kxd1 {[%clk
0:00:29.4]} 33... f3 {[%clk 0:01:19.9]} 34. gxf3 {[%clk 0:00:29.5]} 34... exf3
{[%clk 0:01:21.8]} 35. h4 {[%clk 0:00:27.7]} 35... f2 {[%clk 0:01:22]} 36. Bxf2
{[%clk 0:00:28.4]} 36... Bxf2 {[%clk 0:01:23.9]} 37. hxg5 {[%clk 0:00:29.1]}
37... hxg5 {[%clk 0:01:25.8]} 38. Rg4 {[%clk 0:00:27.7]} 38... Be3 {[%clk
0:01:26.5]} 39. Ke2 {[%clk 0:00:27]} 39... Bf4+ {[%clk 0:01:27.6]} 40. Kf2
{[%clk 0:00:23.3]} 40... Rd8 {[%clk 0:01:28.1]} 41. Kf3 {[%clk 0:00:21.6]} 41...
Rd2 {[%clk 0:01:28.7]} 42. Rg1 {[%clk 0:00:20]} 42... Rxb2 {[%clk 0:01:29.1]}
43. Ke4 {[%clk 0:00:21.3]} 43... Rxa2 {[%clk 0:01:29.9]} 44. c4 {[%clk
0:00:22.8]} 44... Rd2 {[%clk 0:01:30.6]} 45. Rb1 {[%clk 0:00:22.2]} 45... a6
{[%clk 0:01:31.1]} 46. c5 {[%clk 0:00:22.5]} 46... Rc2 {[%clk 0:01:26.1]} 47.
Kd5 {[%clk 0:00:23]} 47... Ka7 {[%clk 0:01:01.7]} 48. Rb3 {[%clk 0:00:18.3]}
48... g4 {[%clk 0:00:57.4]} 49. Rb4 {[%clk 0:00:17.6]} 49... Rf2 {[%clk
0:00:48.9]} 50. Kc6 {[%clk 0:00:17.9]} 50... g3 {[%clk 0:00:44.4]} 51. Rb7+
{[%clk 0:00:18.3]} 51... Ka8 {[%clk 0:00:46]} 52. Rg7 {[%clk 0:00:18.3]} 52...
g2 {[%clk 0:00:43.8]} 53. Kb6 {[%clk 0:00:15.6]} 53... Rb2+ {[%clk 0:00:31.3]}
54. Kxa6 {[%clk 0:00:16.3]} 54... Bb8 {[%clk 0:00:29.4]} 55. Rg8 {[%clk
0:00:15.5]} 55... Rc2 {[%clk 0:00:29.4]} 56. Kb6 {[%clk 0:00:16.2]} 56... Rb2+
{[%clk 0:00:28.9]} 57. Ka6 {[%clk 0:00:16.5]} 57... Ra2+ {[%clk 0:00:30.2]} 58.
Kb6 {[%clk 0:00:17.7]} 58... Rb2+ {[%clk 0:00:28.1]} 59. Ka6 {[%clk 0:00:19]}
59... Rc2 {[%clk 0:00:21.2]} 60. Kb6 {[%clk 0:00:20.1]} 60... Rf2 {[%clk
0:00:21.4]} 61. c6 {[%clk 0:00:20.1]} 61... Rb2+ {[%clk 0:00:22.3]} 62. Ka6
{[%clk 0:00:20.9]} 62... Rc2 {[%clk 0:00:22.7]} 63. Kb6 {[%clk 0:00:22]} 63...
Rb2+ {[%clk 0:00:23.9]} 64. Ka6 {[%clk 0:00:23.3]} 64... Rc2 {[%clk 0:00:20.9]}
65. Kb6 {[%clk 0:00:24.4]} 65... g1=Q+ {[%clk 0:00:19.3]} 66. Rxg1 {[%clk
0:00:21.7]} 66... Ba7+ {[%clk 0:00:20.6]} 67. Kc7 {[%clk 0:00:09.5]} 67... Bxg1
{[%clk 0:00:22.5]} 68. Kd7 {[%clk 0:00:09.3]} 68... Bh2 {[%clk 0:00:23.7]} 0-1

[Event "*** Titled Tuesday 3|2 Blitz"]
[Site "Chess.com"]
[Date "2016.09.06"]
[Round "3"]
[White "ChessWarrior7197"]
[Black "kleinebeer98"]
[Result "1-0"]
[WhiteElo "2485"]
[BlackElo "2505"]
[TimeControl "180+2"]
[EndTime "11:36:40 PDT"]
[Termination "ChessWarrior7197 won by checkmate"]

1. e4 {[%clk 0:03:01.9]} 1... e5 {[%clk 0:02:56.5]} 2. Nf3 {[%clk 0:03:02.4]}
2... Nc6 {[%clk 0:02:57.9]} 3. Bb5 {[%clk 0:03:02.6]} 3... f5 {[%clk 0:02:59.1]}
4. Bxc6 {[%clk 0:02:56.6]} 4... dxc6 {[%clk 0:03:01]} 5. Nc3 {[%clk 0:02:53.7]}
5... Nf6 {[%clk 0:02:59.2]} 6. Qe2 {[%clk 0:02:53.7]} 6... Bd6 {[%clk
0:02:58.1]} 7. d3 {[%clk 0:02:53.6]} 7... fxe4 {[%clk 0:02:57.8]} 8. Nxe4 {[%clk
0:02:53.3]} 8... Nxe4 {[%clk 0:02:59]} 9. dxe4 {[%clk 0:02:54.6]} 9... O-O
{[%clk 0:02:59.2]} 10. h3 {[%clk 0:02:55.6]} 10... Kh8 {[%clk 0:03:00.4]} 11.
Be3 {[%clk 0:02:55.6]} 11... Qe8 {[%clk 0:02:57]} 12. Nd2 {[%clk 0:02:55]} 12...
Be6 {[%clk 0:02:56.4]} 13. f3 {[%clk 0:02:54.9]} 13... b5 {[%clk 0:02:55.4]} 14.
Qf2 {[%clk 0:02:48.4]} 14... a5 {[%clk 0:02:51.7]} 15. O-O {[%clk 0:02:47]}
15... a4 {[%clk 0:02:50.6]} 16. a3 {[%clk 0:02:47.3]} 16... Qg6 {[%clk
0:02:49.5]} 17. Kh2 {[%clk 0:02:45.4]} 17... Rad8 {[%clk 0:02:44.1]} 18. Rad1
{[%clk 0:02:45.2]} 18... h6 {[%clk 0:02:41.4]} 19. Nb1 {[%clk 0:02:45.2]} 19...
Bc4 {[%clk 0:02:40.4]} 20. Rfe1 {[%clk 0:02:44.2]} 20... Rf7 {[%clk 0:02:35.9]}
21. Nc3 {[%clk 0:02:44.4]} 21... Rdf8 {[%clk 0:02:35]} 22. Ne2 {[%clk
0:02:38.5]} 22... Qxe4 {[%clk 0:02:17.3]} 23. fxe4 {[%clk 0:02:24.4]} 23... Rxf2
{[%clk 0:02:19.2]} 24. Bxf2 {[%clk 0:02:25.3]} 24... Rxf2 {[%clk 0:02:21.1]} 25.
Rd2 {[%clk 0:02:11.4]} 25... Bc5 {[%clk 0:02:22.3]} 26. Kg3 {[%clk 0:02:11.9]}
26... Be3 {[%clk 0:02:17.9]} 27. Rd8+ {[%clk 0:02:12.7]} 27... Kh7 {[%clk
0:02:18.3]} 28. Nc1 {[%clk 0:02:13]} 28... Bb6 {[%clk 0:02:13.8]} 29. Red1
{[%clk 0:01:28.6]} 29... Rxc2 {[%clk 0:02:06.3]} 30. R8d2 {[%clk 0:01:29.4]}
30... Rxd2 {[%clk 0:02:06.7]} 31. Rxd2 {[%clk 0:01:31]} 31... Be3 {[%clk
0:02:08]} 32. Rc2 {[%clk 0:01:26.6]} 32... c5 {[%clk 0:02:09.2]} 33. Kf3 {[%clk
0:01:27.8]} 33... Bg5 {[%clk 0:02:03.8]} 34. g3 {[%clk 0:01:26.4]} 34... h5
{[%clk 0:02:03.4]} 35. h4 {[%clk 0:01:27.5]} 35... Bh6 {[%clk 0:02:03.6]} 36.
Ne2 {[%clk 0:01:26.5]} 36... Kg6 {[%clk 0:02:02.4]} 37. Nc3 {[%clk 0:01:24.1]}
37... c6 {[%clk 0:02:03]} 38. Ne2 {[%clk 0:00:58.1]} 38... Kf6 {[%clk
0:01:59.6]} 39. Nc3 {[%clk 0:00:39]} 39... Be6 {[%clk 0:01:53.4]} 40. Nb1 {[%clk
0:00:33.1]} 40... c4 {[%clk 0:01:53.7]} 41. Nc3 {[%clk 0:00:34.2]} 41... Bg4+
{[%clk 0:01:50.1]} 42. Kg2 {[%clk 0:00:34.4]} 42... Ke6 {[%clk 0:01:52]} 43. Rf2
{[%clk 0:00:34.2]} 43... g6 {[%clk 0:01:49.6]} 44. Kf1 {[%clk 0:00:31.1]} 44...
Bg7 {[%clk 0:01:37.6]} 45. Ke1 {[%clk 0:00:31.1]} 45... Ke7 {[%clk 0:01:34.8]}
46. Na2 {[%clk 0:00:30.8]} 46... Bh6 {[%clk 0:01:31.9]} 47. Nb4 {[%clk
0:00:30.2]} 47... Bd7 {[%clk 0:01:29.7]} 48. Kd1 {[%clk 0:00:26]} 48... g5
{[%clk 0:01:29.2]} 49. Kc2 {[%clk 0:00:25.4]} 49... gxh4 {[%clk 0:01:27.1]} 50.
gxh4 {[%clk 0:00:27]} 50... Bf4 {[%clk 0:01:28.8]} 51. Rg2 {[%clk 0:00:28.1]}
51... Kf7 {[%clk 0:01:27.3]} 52. Rg1 {[%clk 0:00:26]} 52... Be8 {[%clk
0:01:25.2]} 53. Kc3 {[%clk 0:00:23.7]} 53... Ke6 {[%clk 0:01:26.6]} 54. Rg8
{[%clk 0:00:22.8]} 54... Kf7 {[%clk 0:01:25]} 55. Rh8 {[%clk 0:00:23.5]} 55...
Ke7 {[%clk 0:01:24.5]} 56. Rh7+ {[%clk 0:00:23.8]} 56... Kd6 {[%clk 0:01:25.5]}
57. Rg7 {[%clk 0:00:21.4]} 57... Be3 {[%clk 0:01:22]} 58. Na6 {[%clk 0:00:21.6]}
58... Bf2 {[%clk 0:01:20.6]} 59. Kc2 {[%clk 0:00:22.2]} 59... Bxh4 {[%clk
0:01:20.2]} 60. Nc7 {[%clk 0:00:21.3]} 60... Bd7 {[%clk 0:01:21.5]} 61. Na8
{[%clk 0:00:19.1]} 61... Bf6 {[%clk 0:01:22.3]} 62. Rg6 {[%clk 0:00:19.1]} 62...
Ke7 {[%clk 0:01:23.8]} 63. Nb6 {[%clk 0:00:20]} 63... Be6 {[%clk 0:01:23.9]} 64.
Rh6 {[%clk 0:00:19.8]} 64... h4 {[%clk 0:01:24.8]} 65. Rh7+ {[%clk 0:00:20.8]}
65... Kd6 {[%clk 0:01:25.6]} 66. Rh6 {[%clk 0:00:18.5]} 66... h3 {[%clk
0:01:25.6]} 67. Rxf6 {[%clk 0:00:18.5]} 67... h2 {[%clk 0:01:19.7]} 68. Rh6
{[%clk 0:00:19.2]} 68... Kc7 {[%clk 0:01:19.2]} 69. Na8+ {[%clk 0:00:17.4]}
69... Kb7 {[%clk 0:01:18.5]} 70. Rxh2 {[%clk 0:00:17.8]} 70... Kxa8 {[%clk
0:01:19.1]} 71. Rh5 {[%clk 0:00:19.1]} 71... Kb8 {[%clk 0:01:10.8]} 72. Rxe5
{[%clk 0:00:20.3]} 72... Bd7 {[%clk 0:01:12.7]} 73. Kc3 {[%clk 0:00:21.9]} 73...
Kc7 {[%clk 0:01:14.6]} 74. Kd4 {[%clk 0:00:23.1]} 74... Kd6 {[%clk 0:01:16.5]}
75. Rh5 {[%clk 0:00:24.2]} 75... Be6 {[%clk 0:01:14.9]} 76. e5+ {[%clk 0:00:23]}
76... Kc7 {[%clk 0:01:16.2]} 77. Kc5 {[%clk 0:00:24.1]} 77... Bd5 {[%clk
0:01:14.4]} 78. Rh7+ {[%clk 0:00:24.7]} 78... Kb8 {[%clk 0:01:14.7]} 79. Kd6
{[%clk 0:00:25.7]} 79... b4 {[%clk 0:01:15.6]} 80. axb4 {[%clk 0:00:25.5]} 80...
c3 {[%clk 0:01:16.8]} 81. bxc3 {[%clk 0:00:26.7]} 81... a3 {[%clk 0:01:18.7]}
82. e6 {[%clk 0:00:24.6]} 82... a2 {[%clk 0:01:20.6]} 83. e7 {[%clk 0:00:26]}
83... a1=Q {[%clk 0:01:19.5]} 84. e8=Q# {[%clk 0:00:26.9]} 1-0

[Event "*** Titled Tuesday 3|2 Blitz"]
[Site "Chess.com"]
[Date "2016.09.06"]
[Round "3"]
[White "Anton_Demchenko"]
[Black "CroatianPower"]
[Result "1/2-1/2"]
[WhiteElo "2606"]
[BlackElo "2443"]
[TimeControl "180+2"]
[EndTime "11:37:26 PDT"]
[Termination "Game drawn by stalemate"]

1. e4 {[%clk 0:03:01.9]} 1... e6 {[%clk 0:02:58.6]} 2. d4 {[%clk 0:03:02.5]}
2... d5 {[%clk 0:02:59.8]} 3. Nc3 {[%clk 0:03:04.4]} 3... Bb4 {[%clk 0:03:00.6]}
4. e5 {[%clk 0:03:05]} 4... c5 {[%clk 0:03:01.7]} 5. a3 {[%clk 0:03:05.7]} 5...
Bxc3+ {[%clk 0:03:03]} 6. bxc3 {[%clk 0:03:04.8]} 6... Qa5 {[%clk 0:03:04.5]} 7.
Bd2 {[%clk 0:03:04]} 7... Qa4 {[%clk 0:03:04.9]} 8. Qg4 {[%clk 0:02:59.4]} 8...
Kf8 {[%clk 0:03:05.4]} 9. Nf3 {[%clk 0:02:58.2]} 9... Ne7 {[%clk 0:03:03.7]} 10.
Bd3 {[%clk 0:02:58.1]} 10... c4 {[%clk 0:03:02.6]} 11. Be2 {[%clk 0:02:59.4]}
11... Qxc2 {[%clk 0:03:01.1]} 12. O-O {[%clk 0:03:00.5]} 12... Nbc6 {[%clk
0:02:30.7]} 13. Bd1 {[%clk 0:02:52.7]} 13... Qg6 {[%clk 0:02:15.6]} 14. Qh3
{[%clk 0:02:51.2]} 14... Qf5 {[%clk 0:02:15.9]} 15. Qh4 {[%clk 0:02:49.7]} 15...
Ng6 {[%clk 0:01:53.5]} 16. Qg3 {[%clk 0:02:48.2]} 16... h5 {[%clk 0:01:54.4]}
17. h3 {[%clk 0:02:49]} 17... h4 {[%clk 0:01:54.7]} 18. Qh2 {[%clk 0:02:50.6]}
18... Bd7 {[%clk 0:01:29.8]} 19. Rc1 {[%clk 0:02:49.7]} 19... Nce7 {[%clk
0:01:29.2]} 20. Bc2 {[%clk 0:02:50.4]} 20... Qh5 {[%clk 0:01:30.3]} 21. Ng5
{[%clk 0:02:50.3]} 21... Rg8 {[%clk 0:00:48.2]} 22. Bd1 {[%clk 0:02:36.4]} 22...
Qh8 {[%clk 0:00:49]} 23. Rb1 {[%clk 0:02:36.8]} 23... b6 {[%clk 0:00:49.5]} 24.
a4 {[%clk 0:02:37.7]} 24... f6 {[%clk 0:00:46.2]} 25. Nf3 {[%clk 0:02:34.4]}
25... Kf7 {[%clk 0:00:46.2]} 26. a5 {[%clk 0:02:32.5]} 26... Rgb8 {[%clk
0:00:41.1]} 27. exf6 {[%clk 0:02:30.4]} 27... gxf6 {[%clk 0:00:39.8]} 28. Qd6
{[%clk 0:02:27.6]} 28... Qd8 {[%clk 0:00:28.2]} 29. Bc2 {[%clk 0:02:28.8]} 29...
Be8 {[%clk 0:00:18.9]} 30. Qxd8 {[%clk 0:02:14]} 30... Rxd8 {[%clk 0:00:19.9]}
31. axb6 {[%clk 0:02:15.9]} 31... axb6 {[%clk 0:00:21.8]} 32. Rxb6 {[%clk
0:02:17.8]} 32... Ra2 {[%clk 0:00:23.4]} 33. Rc1 {[%clk 0:02:19.2]} 33... Rda8
{[%clk 0:00:20.2]} 34. Kf1 {[%clk 0:02:13.9]} 34... R8a6 {[%clk 0:00:19.4]} 35.
Rb7 {[%clk 0:02:14]} 35... Ra7 {[%clk 0:00:19.9]} 36. Rb8 {[%clk 0:02:09.9]}
36... Ra8 {[%clk 0:00:17.1]} 37. Rxa8 {[%clk 0:02:06.1]} 37... Rxa8 {[%clk
0:00:17.6]} 38. Rb1 {[%clk 0:02:08]} 38... Ba4 {[%clk 0:00:18.3]} 39. Ra1 {[%clk
0:02:03.1]} 39... Bc6 {[%clk 0:00:16.1]} 40. Rb1 {[%clk 0:01:41.1]} 40... Ra2
{[%clk 0:00:16.7]} 41. Bd1 {[%clk 0:01:22.9]} 41... Ba4 {[%clk 0:00:17]} 42.
Bxa4 {[%clk 0:01:24]} 42... Rxa4 {[%clk 0:00:18]} 43. Ke2 {[%clk 0:01:25.9]}
43... Ra2 {[%clk 0:00:19]} 44. Kd1 {[%clk 0:01:22.2]} 44... e5 {[%clk
0:00:13.9]} 45. Rb7 {[%clk 0:01:11.5]} 45... Ke6 {[%clk 0:00:09.3]} 46. Rb6+
{[%clk 0:01:10.7]} 46... Kf5 {[%clk 0:00:09.6]} 47. dxe5 {[%clk 0:00:55.4]}
47... fxe5 {[%clk 0:00:10.8]} 48. Be3 {[%clk 0:00:47.4]} 48... Nf4 {[%clk
0:00:09.1]} 49. Bxf4 {[%clk 0:00:42.8]} 49... Kxf4 {[%clk 0:00:10.3]} 50. Rf6+
{[%clk 0:00:39.6]} 50... Nf5 {[%clk 0:00:06.6]} 51. Nxh4 {[%clk 0:00:39]} 51...
Kg5 {[%clk 0:00:08.1]} 52. Rxf5+ {[%clk 0:00:35.1]} 52... Kxh4 {[%clk
0:00:09.5]} 53. Rxe5 {[%clk 0:00:24.5]} 53... Rxf2 {[%clk 0:00:10.4]} 54. Rxd5
{[%clk 0:00:23.9]} 54... Rxg2 {[%clk 0:00:11.3]} 55. Rd4+ {[%clk 0:00:24.8]}
55... Kxh3 {[%clk 0:00:09.8]} 56. Rxc4 {[%clk 0:00:25.8]} 56... Ra2 {[%clk
0:00:10.9]} 57. Rf4 {[%clk 0:00:20]} 57... Kg3 {[%clk 0:00:12]} 58. Rf8 {[%clk
0:00:20.9]} 58... Kg4 {[%clk 0:00:12.1]} 59. Kc1 {[%clk 0:00:22]} 59... Kg5
{[%clk 0:00:13.5]} 60. Kb1 {[%clk 0:00:23.3]} 60... Rd2 {[%clk 0:00:14.1]} 61.
Rf1 {[%clk 0:00:22.1]} 61... Kg6 {[%clk 0:00:14.2]} 62. Rf3 {[%clk 0:00:18.9]}
62... Kg5 {[%clk 0:00:14.6]} 63. c4 {[%clk 0:00:20.2]} 63... Kg6 {[%clk
0:00:13]} 64. c5 {[%clk 0:00:19.5]} 64... Rd5 {[%clk 0:00:13.7]} 65. Rc3 {[%clk
0:00:20.1]} 65... Kf6 {[%clk 0:00:15]} 66. c6 {[%clk 0:00:19.4]} 66... Rd8
{[%clk 0:00:16]} 67. Kb2 {[%clk 0:00:14.4]} 67... Ke6 {[%clk 0:00:17.2]} 68. Kb3
{[%clk 0:00:15.9]} 68... Kd6 {[%clk 0:00:13.1]} 69. Rd3+ {[%clk 0:00:16.8]}
69... Kc7 {[%clk 0:00:14.4]} 70. Rxd8 {[%clk 0:00:17.4]} 70... Kxd8 {[%clk
0:00:16.3]} 71. Kc4 {[%clk 0:00:19.3]} 71... Kc7 {[%clk 0:00:17.4]} 72. Kd5
{[%clk 0:00:21.2]} 72... Kc8 {[%clk 0:00:17.6]} 73. Kd6 {[%clk 0:00:23.1]} 73...
Kd8 {[%clk 0:00:19]} 74. Kc5 {[%clk 0:00:25]} 74... Kc7 {[%clk 0:00:20.4]} 75.
Kb5 {[%clk 0:00:25.8]} 75... Kc8 {[%clk 0:00:21.6]} 76. Kc4 {[%clk 0:00:27.7]}
76... Kc7 {[%clk 0:00:22.8]} 77. Kc5 {[%clk 0:00:29.6]} 77... Kc8 {[%clk
0:00:24.3]} 78. Kb6 {[%clk 0:00:31.5]} 78... Kb8 {[%clk 0:00:25.6]} 79. c7+
{[%clk 0:00:33]} 79... Kc8 {[%clk 0:00:27.1]} 80. Kc6 {[%clk 0:00:34.9]} 1/2-1/2

[Event "*** Titled Tuesday 3|2 Blitz"]
[Site "Chess.com"]
[Date "2016.09.06"]
[Round "3"]
[White "Krutoy123"]
[Black "OparinGrigoriy"]
[Result "1/2-1/2"]
[WhiteElo "2373"]
[BlackElo "2592"]
[TimeControl "180+2"]
[EndTime "11:37:37 PDT"]
[Termination "Game drawn by repetition"]

1. Nf3 {[%clk 0:03:00.4]} 1... d5 {[%clk 0:03:01]} 2. c4 {[%clk 0:03:00.6]} 2...
e6 {[%clk 0:03:01.9]} 3. b3 {[%clk 0:03:01.4]} 3... Nf6 {[%clk 0:03:03.2]} 4.
Bb2 {[%clk 0:03:02.2]} 4... Be7 {[%clk 0:03:05]} 5. e3 {[%clk 0:03:03]} 5... O-O
{[%clk 0:03:06.4]} 6. Be2 {[%clk 0:03:04.5]} 6... c5 {[%clk 0:03:07.8]} 7. O-O
{[%clk 0:03:05.7]} 7... b6 {[%clk 0:03:09]} 8. d4 {[%clk 0:03:05.8]} 8... Bb7
{[%clk 0:03:10.3]} 9. cxd5 {[%clk 0:03:05.9]} 9... Nxd5 {[%clk 0:03:10.8]} 10.
dxc5 {[%clk 0:03:04.5]} 10... Bxc5 {[%clk 0:03:12.4]} 11. Nbd2 {[%clk
0:03:05.6]} 11... Nd7 {[%clk 0:03:13.5]} 12. Rc1 {[%clk 0:03:04.6]} 12... Rc8
{[%clk 0:03:14.1]} 13. a3 {[%clk 0:02:53.4]} 13... Be7 {[%clk 0:03:02.4]} 14. b4
{[%clk 0:02:50.9]} 14... Bf6 {[%clk 0:03:03.2]} 15. Nd4 {[%clk 0:02:48.4]} 15...
Rxc1 {[%clk 0:02:55.3]} 16. Qxc1 {[%clk 0:02:48.8]} 16... Qa8 {[%clk 0:02:55.8]}
17. Qb1 {[%clk 0:02:34.8]} 17... Rd8 {[%clk 0:02:48.2]} 18. Rc1 {[%clk 0:02:34]}
18... Be7 {[%clk 0:02:39.5]} 19. N2f3 {[%clk 0:02:22.3]} 19... h6 {[%clk
0:02:38]} 20. Bb5 {[%clk 0:02:16.7]} 20... N5f6 {[%clk 0:02:27.5]} 21. Nc6
{[%clk 0:02:13.2]} 21... Bxc6 {[%clk 0:02:25.6]} 22. Bxc6 {[%clk 0:02:13.4]}
22... Qb8 {[%clk 0:02:27.3]} 23. Nd4 {[%clk 0:02:07.9]} 23... Bd6 {[%clk
0:02:10.3]} 24. g3 {[%clk 0:02:06.9]} 24... Rc8 {[%clk 0:02:06.9]} 25. Bg2
{[%clk 0:02:04.6]} 25... Rxc1+ {[%clk 0:02:07.4]} 26. Qxc1 {[%clk 0:02:06.5]}
26... a5 {[%clk 0:02:03.3]} 27. Qc4 {[%clk 0:01:56.3]} 27... axb4 {[%clk
0:02:03.7]} 28. axb4 {[%clk 0:01:58.2]} 28... Ne5 {[%clk 0:02:00.9]} 29. Qb5
{[%clk 0:01:54.7]} 29... Qc7 {[%clk 0:01:56.8]} 30. h3 {[%clk 0:00:47.3]} 30...
Nc4 {[%clk 0:01:47.3]} 31. Bc1 {[%clk 0:00:47.4]} 31... Ne5 {[%clk 0:01:37.1]}
32. Bd2 {[%clk 0:00:48.3]} 32... Nc4 {[%clk 0:01:38.1]} 33. Be1 {[%clk
0:00:43.3]} 33... Nd7 {[%clk 0:01:29.5]} 34. Qa6 {[%clk 0:00:30.5]} 34... Nce5
{[%clk 0:01:20.8]} 35. Qa8+ {[%clk 0:00:24.7]} 35... Bf8 {[%clk 0:01:22.1]} 36.
Qa1 {[%clk 0:00:21.7]} 36... Nd3 {[%clk 0:01:21]} 37. Nc6 {[%clk 0:00:19]} 37...
Nxe1 {[%clk 0:01:20.4]} 38. Qxe1 {[%clk 0:00:20.9]} 38... Ne5 {[%clk 0:01:16.8]}
39. b5 {[%clk 0:00:22]} 39... Bc5 {[%clk 0:01:15.7]} 40. Qc3 {[%clk 0:00:21.1]}
40... Nd7 {[%clk 0:01:13.8]} 41. h4 {[%clk 0:00:19.9]} 41... Qd6 {[%clk
0:01:13.9]} 42. Bf1 {[%clk 0:00:19.1]} 42... Nf6 {[%clk 0:01:14.3]} 43. Qd3
{[%clk 0:00:16.5]} 43... Nd5 {[%clk 0:00:57.7]} 44. Bg2 {[%clk 0:00:15.6]} 44...
Nc7 {[%clk 0:00:49.4]} 45. Qxd6 {[%clk 0:00:16.6]} 45... Bxd6 {[%clk 0:00:51.3]}
46. Bf1 {[%clk 0:00:18.3]} 46... g5 {[%clk 0:00:48.3]} 47. hxg5 {[%clk
0:00:18.5]} 47... hxg5 {[%clk 0:00:50.2]} 48. Bc4 {[%clk 0:00:18.9]} 48... Kg7
{[%clk 0:00:51.2]} 49. Kg2 {[%clk 0:00:20.2]} 49... Bc5 {[%clk 0:00:49.4]} 50.
g4 {[%clk 0:00:21.4]} 50... Ne8 {[%clk 0:00:50.2]} 51. Kf3 {[%clk 0:00:20.8]}
51... Nd6 {[%clk 0:00:51.7]} 52. Bd3 {[%clk 0:00:21.9]} 52... f5 {[%clk
0:00:52.9]} 53. Kg3 {[%clk 0:00:20.1]} 53... Kf6 {[%clk 0:00:53]} 54. Nb8 {[%clk
0:00:17.6]} 54... Ke7 {[%clk 0:00:49.9]} 55. Nc6+ {[%clk 0:00:18]} 55... Kf6
{[%clk 0:00:51.2]} 56. Nb8 {[%clk 0:00:19.1]} 56... Ke7 {[%clk 0:00:33.6]} 57.
Nc6+ {[%clk 0:00:20]} 57... Ke8 {[%clk 0:00:35.2]} 58. Kf3 {[%clk 0:00:17.7]}
58... Kf7 {[%clk 0:00:23]} 59. Ne5+ {[%clk 0:00:17.2]} 59... Ke7 {[%clk
0:00:23.7]} 60. Kg3 {[%clk 0:00:15.4]} 60... Ba3 {[%clk 0:00:17.9]} 61. f4
{[%clk 0:00:14]} 61... gxf4+ {[%clk 0:00:18.1]} 62. exf4 {[%clk 0:00:14.7]}
62... fxg4 {[%clk 0:00:18.2]} 63. Kxg4 {[%clk 0:00:16.6]} 63... Bb2 {[%clk
0:00:19.6]} 64. Nc6+ {[%clk 0:00:16.5]} 64... Kf6 {[%clk 0:00:20.1]} 65. Nb8
{[%clk 0:00:17.2]} 65... Bd4 {[%clk 0:00:21]} 66. Nc6 {[%clk 0:00:18.1]} 66...
Bc5 {[%clk 0:00:21.7]} 67. Ne5 {[%clk 0:00:18.6]} 67... Ke7 {[%clk 0:00:22.2]}
68. Kf3 {[%clk 0:00:18]} 68... Nf5 {[%clk 0:00:19]} 69. Nc6+ {[%clk 0:00:16]}
69... Kd6 {[%clk 0:00:19.6]} 70. Bc4 {[%clk 0:00:15.5]} 70... Nh4+ {[%clk
0:00:18.9]} 71. Ke4 {[%clk 0:00:16.1]} 71... Nf5 {[%clk 0:00:20.5]} 72. Nd8
{[%clk 0:00:15.8]} 72... Nd4 {[%clk 0:00:19.7]} 73. Nb7+ {[%clk 0:00:15.5]}
73... Kc7 {[%clk 0:00:19.4]} 74. Nxc5 {[%clk 0:00:15.7]} 74... bxc5 {[%clk
0:00:21.3]} 75. Ke5 {[%clk 0:00:16.3]} 75... Kb6 {[%clk 0:00:22.2]} 76. Bd3
{[%clk 0:00:14.6]} 76... Kc7 {[%clk 0:00:21]} 77. Bf1 {[%clk 0:00:13.7]} 77...
Kd7 {[%clk 0:00:19.5]} 78. Bc4 {[%clk 0:00:13.7]} 78... Kc7 {[%clk 0:00:21]} 79.
Bd3 {[%clk 0:00:10.2]} 79... Kd7 {[%clk 0:00:21.2]} 80. Bc4 {[%clk 0:00:10.8]}
80... Kc7 {[%clk 0:00:22.8]} 81. Bd3 {[%clk 0:00:12]} 81... Kd7 {[%clk
0:00:24.4]} 82. Bc4 {[%clk 0:00:13.2]} 82... Kc7 {[%clk 0:00:26.1]} 83. Bd3
{[%clk 0:00:14.2]} 1/2-1/2